bitfinex/quotes_ETHUSD_20241130
["timestamp","ask_amount","ask_price","bid_price","bid_amount"]
[1732928783697,0.04859836,3578.4,3578.3,2.79462]
[1732928783850,4.0617,3579.1,3578.4,2.79452]
[1732928784189,3.2488339,3579.0,3578.4,2.79452]
[1732928784394,0.4547539,3579.0,3578.7,2.79425]
[1732928784692,0.0485839,3579.0,3578.5,2.7944]
[1732928784894,0.0485839,3579.0,3578.6,2.79433]
[1732928785098,1.2677,3579.1,3578.6,2.79433]
[1732928785387,0.0485839,3579.0,3578.6,2.79433]
[1732928785597,4.401329,3579.4,3578.8,2.79416]
[1732928785765,1.607569,3579.4,3578.8,2.79416]
[1732928785969,0.0486685,3579.3,3578.8,2.79416]
[1732928786663,0.0486685,3579.3,3578.6,2.79433]
[1732928786664,2.8425585,3579.3,3578.6,2.79433]
[1732928786870,2.79397,3579.2,3578.6,2.79433]
[1732928787094,0.04864988,3579.1,3578.6,2.79433]
[1732928787391,2.84269988,3579.1,3578.5,2.79446]
[1732928787563,0.04864988,3579.1,3578.6,2.79438]
[1732928787776,3.23889275,3579.3,3578.6,2.79438]
[1732928787983,0.04882134,3579.2,3578.6,2.79438]
[1732928788163,0.7162888,3579.2,3578.6,2.79438]
[1732928788999,0.7162888,3579.2,3578.4,5.93351106]
[1732928789000,3.5102188,3579.2,3578.4,5.93351106]
[1732928789210,3.5102188,3579.2,3578.4,2.58903106]
[1732928789211,0.7162888,3579.2,3578.4,2.58903106]
[1732928789505,2.84279134,3579.2,3578.6,2.79434]
[1732928789668,2.794,3579.1,3578.5,2.79446]
[1732928789863,2.84279134,3579.2,3578.4,2.58903106]
[1732928789864,2.79422,3578.9,3578.4,2.58903106]
[1732928790073,2.79356,3579.7,3578.1,4.02501]
[1732928790074,1.3282,3578.7,3578.1,0.55]
[1732928790268,0.04875571,3578.6,3578.2,2.79468]
[1732928791179,0.04875571,3578.6,3578.3,2.79462]
[1732928791711,0.04875571,3578.6,3578.5,2.79446]
[1732928791876,0.04875571,3578.6,3578.5,4.57666]
[1732928792217,4.12213,3579.2,3578.6,2.79437]
[1732928792508,0.0487925,3579.1,3578.7,2.7943]
[1732928793618,0.04878319,3579.0,3578.7,2.7943]
[1732928793916,1.3282,3579.2,3578.7,2.7943]
[1732928794087,0.04877388,3578.9,3578.7,2.7943]
[1732928794275,1.3282,3579.2,3578.7,2.7943]
[1732928794475,0.0487925,3579.1,3578.7,2.7943]
[1732928795299,0.0487925,3579.1,3578.6,3.34438]
[1732928797613,0.0487925,3579.1,3578.6,0.55]
[1732928797844,0.0487925,3579.1,3578.4,5.38356106]
[1732928797845,3.21118425,3579.0,3578.5,0.55]
[1732928798139,0.04877388,3578.9,3578.5,0.55]
[1732928798436,0.04877388,3578.9,3578.5,3.34445]
[1732928798632,4.12217,3579.2,3578.6,2.79434]
[1732928798840,0.04879326,3579.1,3578.6,2.79434]
[1732928799938,0.04879326,3579.1,3578.8,3.82123106]
[1732928800142,0.04879326,3579.1,3578.9,0.55]
[1732928800343,1.3282,3580.2,3579.8,2.79338]
[1732928800545,100.0,3581.2,3580.3,2.79299]
[1732928800546,4.12068,3581.1,3580.3,2.79299]
[1732928800718,4.05403547,3581.1,3580.6,2.79281]
[1732928801042,0.04578996,3581.0,3580.6,2.79281]
[1732928801250,0.04578996,3581.0,3580.6,5.38184106]
[1732928801439,0.04578996,3581.0,3580.8,2.79267]
[1732928801746,0.04578996,3581.0,3580.6,5.38184106]
[1732928801747,0.04578996,3581.0,3580.7,2.79273]
[1732928803212,100.0,3581.2,3580.7,2.79273]
[1732928803562,0.04144055,3581.1,3580.7,2.79273]
[1732928804211,2.83393055,3581.1,3580.3,2.79305]
[1732928804408,4.121,3580.7,3579.8,5.38240106]
[1732928804619,0.04157358,3580.6,3579.9,0.55]
[1732928804810,0.04157358,3580.6,3580.2,2.79312]
[1732928805430,0.04157358,3580.6,3579.9,3.34335]
[1732928805957,0.04157358,3580.6,3580.1,2.79321]
[1732928806742,2.83440358,3580.6,3579.9,0.55]
[1732928807051,2.83440358,3580.6,3580.1,0.55]
[1732928807261,0.04157358,3580.6,3579.8,2.58903106]
[1732928807457,0.04157358,3580.6,3580.3,2.79306]
[1732928807817,0.04157358,3580.6,3580.5,3.3429]
[1732928808018,1.2755,3581.1,3580.6,2.79278]
[1732928808343,1.2755,3581.1,3580.7,2.79268]
[1732928808344,0.04193179,3581.0,3580.7,2.79268]
[1732928808663,0.04193179,3581.0,3580.6,0.55]
[1732928808955,2.79229,3581.3,3580.7,2.79273]
[1732928809121,0.04183857,3580.9,3580.7,2.79273]
[1732928809324,102.79236,3581.2,3580.6,0.55]
[1732928809659,102.79236,3581.2,3580.5,0.55]
[1732928809862,0.04185353,3581.1,3580.4,0.46662]
[1732928810230,0.04185353,3581.1,3580.6,2.79282]
[1732928810426,0.04185353,3581.1,3580.8,2.79267]
[1732928810867,0.04185353,3581.1,3581.0,2.79251]
[1732928811757,0.04185353,3581.1,3581.0,5.38154106]
[1732928812877,0.04185353,3581.1,3581.0,7.25534106]
[1732928814672,0.04185353,3581.1,3581.0,10.25534106]
[1732928815763,0.04185353,3581.1,3580.6,5.38185106]
[1732928815946,2.72583547,3581.0,3580.6,2.58903106]
[1732928816349,2.72583547,3581.0,3580.2,1.3238]
[1732928816350,0.04207257,3580.9,3580.2,2.58903106]
[1732928816615,2.79267,3580.8,3580.3,2.79305]
[1732928816749,3.6279818,3580.8,3580.2,5.38210106]
[1732928816951,0.04205397,3580.7,3580.5,2.79285]
[1732928817162,0.04205397,3580.7,3580.4,2.79291]
[1732928817452,102.79236,3581.2,3580.6,2.79282]
[1732928817645,102.79236,3581.2,3580.2,2.58903106]
[1732928817646,5.51831547,3581.1,3580.3,0.55]
[1732928817861,5.51831547,3581.1,3580.5,2.7929]
[1732928818351,2.79252,3581.0,3580.5,2.7929]
[1732928818550,2.79252,3581.0,3580.3,3.34305]
[1732928818551,2.79254,3581.0,3580.3,3.34305]
[1732928818742,5.51831547,3581.1,3580.3,3.34305]
[1732928819158,5.51831547,3581.1,3580.5,2.79283]
[1732928819653,0.04196146,3581.0,3580.5,2.79286]
[1732928820178,0.04196146,3581.0,3580.7,2.79273]
[1732928820565,2.79245,3581.1,3580.5,2.79286]
[1732928820763,2.79272,3580.8,3580.3,0.55]
[1732928821005,0.04196812,3581.0,3580.4,2.79293]
[1732928821182,0.04194022,3580.7,3580.4,2.79293]
[1732928821383,2.79253,3581.0,3580.4,2.79293]
[1732928821554,0.04193092,3580.6,3580.5,2.79289]
[1732928821751,2.72583547,3581.1,3580.5,2.79289]
[1732928821956,0.04193455,3580.6,3580.5,2.79289]
[1732928822194,2.79249,3581.1,3580.4,2.79296]
[1732928822356,0.04193455,3580.6,3580.4,2.79296]
[1732928822556,2.79249,3581.1,3580.4,2.79296]
[1732928822759,0.04192525,3580.5,3580.3,3.34301]
[1732928823001,2.79267,3580.8,3580.3,0.55]
[1732928823204,0.04191595,3580.4,3580.3,3.34305]
[1732928823372,5.51827547,3581.1,3580.5,2.79283]
[1732928823571,2.79244,3581.1,3580.5,2.79283]
[1732928823776,0.04197175,3581.0,3580.7,2.79267]
[1732928824128,100.0,3581.2,3581.1,2.79243]
[1732928824462,100.04199986,3581.2,3581.1,2.79243]
[1732928827608,100.04199986,3581.2,3581.1,7.74673]
[1732928829938,100.04199986,3581.2,3581.1,8.00750389]
[1732928833989,100.04199986,3581.2,3581.1,8.57529338]
[1732928836897,84.69075147,3581.2,3581.1,8.57529338]
[1732928837391,80.32101122,3581.2,3581.1,8.31451949]
[1732928837601,80.32101122,3581.2,3581.1,8.83533654]
[1732928837893,79.44832348,3581.2,3581.1,8.83533654]
[1732928838272,78.44832348,3581.2,3581.1,8.83533654]
[1732928838465,72.86360348,3581.2,3581.1,8.83533654]
[1732928838661,70.53865517,3581.2,3581.1,11.77333654]
[1732928838876,70.53865517,3581.2,3581.1,8.57494829]
[1732928839359,62.4732855,3581.2,3581.1,8.57494829]
[1732928839559,61.0771055,3581.2,3581.1,8.57494829]
[1732928839799,59.6809255,3581.2,3581.1,8.85434829]
[1732928839987,55.45507571,3581.2,3581.1,8.85434829]
[1732928840160,13.1855502,3581.2,3581.1,11.79234829]
[1732928840368,12.9065502,3581.2,3581.1,11.79234829]
[1732928840871,11.5103702,3581.2,3581.1,11.79234829]
[1732928841495,11.5103702,3581.2,3581.1,8.30434829]
[1732928842059,11.5103702,3581.2,3581.1,8.02494829]
[1732928842864,11.5103702,3581.2,3581.1,8.57494829]
[1732928843912,11.5103702,3581.2,3581.1,8.31451949]
[1732928844419,11.5103702,3581.2,3581.1,11.25251949]
[1732928844772,4.5294702,3581.2,3581.1,11.53191949]
[1732928844976,4.49344909,3581.2,3581.1,11.53191949]
[1732928845318,4.45144923,3581.2,3581.1,11.53191949]
[1732928845680,1.3911,3582.5,3581.1,11.53191949]
[1732928845681,1.3911,3582.5,3582.4,2.79142]
[1732928845873,1.3476,3583.2,3582.5,2.79129]
[1732928846213,0.04144975,3583.1,3582.4,2.79142]
[1732928846518,0.04144975,3583.1,3582.6,2.79125]
[1732928846742,0.04144975,3583.1,3582.6,2.81915927]
[1732928847596,0.04144975,3583.1,3582.6,2.81915926]
[1732928847924,1.3476,3583.2,3582.8,2.7911]
[1732928848125,0.04155112,3583.1,3583.0,2.79089]
[1732928848277,1.3476,3583.2,3583.0,3.05111392]
[1732928848621,1.3476,3583.2,3583.1,0.26022392]
[1732928848927,1.3476,3583.2,3583.1,3.05109392]
[1732928849214,1.3476,3583.5,3583.3,2.7907]
[1732928849388,1.3476,3583.5,3583.4,3.05086392]
[1732928849591,1.3476,3583.5,3583.4,0.26022392]
[1732928850102,1.3476,3583.5,3583.4,3.05086392]
[1732928850653,2.88922,3585.3,3583.5,2.79051]
[1732928850654,4.13759,3584.3,3583.5,2.79051]
[1732928850807,0.413759,3584.2,3583.6,0.26022392]
[1732928851008,0.413759,3584.2,3583.7,0.26022392]
[1732928851228,0.413759,3584.2,3583.8,0.26022392]
[1732928851430,0.413759,3584.2,3583.9,0.26022392]
[1732928851631,0.4551219,3584.1,3584.0,0.26022392]
[1732928852227,0.4551219,3584.1,3584.0,0.26010585]
[1732928852453,0.49582104,3584.1,3584.0,0.26010585]
[1732928852809,0.04069914,3584.1,3584.0,0.26010585]
[1732928853037,4.17839914,3584.1,3584.0,0.26010585]
[1732928853349,1.3476,3584.0,3582.7,3.0]
[1732928853657,1.3476,3584.0,3583.2,2.79073]
[1732928853658,0.04070591,3583.9,3583.2,2.79073]
[1732928853851,0.41784159,3583.8,3583.3,3.05094036]
[1732928854148,0.04068734,3583.7,3583.4,0.26024036]
[1732928854351,0.04068734,3583.7,3583.5,0.26024036]
[1732928854536,1.3476,3583.7,3583.6,0.26024036]
[1732928854724,4.13801,3583.7,3583.6,0.26024036]
[1732928854927,1.3476,3583.6,3582.5,3.05153036]
[1732928855233,2.79066,3583.4,3582.6,0.26029101]
[1732928855436,4.13846,3583.2,3582.7,0.26029101]
[1732928855623,4.13846,3583.2,3582.8,0.26029101]
[1732928855624,2.7909,3583.1,3582.8,0.26029101]
[1732928855818,3.204746,3583.1,3582.9,0.26029101]
[1732928856010,1.3476,3582.9,3581.8,1.3685]
[1732928856222,2.79132,3582.6,3581.9,0.26037598]
[1732928856466,2.79076,3583.3,3582.0,0.26037598]
[1732928856467,2.79165,3582.1,3582.0,0.26037598]
[1732928856630,4.13925,3582.1,3582.0,0.26037598]
[1732928856954,4.13925,3582.1,3580.5,1.3685]
[1732928856955,3.52487615,3582.1,3580.6,0.26037598]
[1732928857109,1.3476,3581.5,3580.7,3.05326951]
[1732928857452,1.3476,3581.5,3580.5,3.07228]
[1732928857453,2.79235,3581.3,3580.8,0.26057951]
[1732928857651,0.03989637,3581.2,3580.9,0.26057951]
[1732928857947,0.03989637,3581.2,3580.5,3.07229]
[1732928857948,0.03989637,3581.2,3581.0,0.26057951]
[1732928858122,0.03989637,3581.2,3580.5,3.07229]
[1732928858123,0.03989637,3581.2,3581.1,0.26057951]
[1732928858320,2.7923,3581.3,3581.1,0.26057951]
[1732928858525,2.7923,3581.3,3581.2,0.26057951]
[1732928859211,1.3476,3581.5,3581.2,0.26057951]
[1732928859443,1.3476,3581.5,3581.3,0.26057951]
[1732928859641,1.3476,3581.5,3580.6,5.7928]
[1732928859642,2.831904,3581.4,3580.6,5.7928]
[1732928859848,2.831904,3581.4,3580.7,0.26039137]
[1732928860146,2.831904,3581.4,3580.8,3.26039137]
[1732928860352,0.039704,3581.4,3580.8,3.26039137]
[1732928860554,0.039704,3581.4,3580.9,0.26039137]
[1732928860754,0.039704,3581.4,3581.0,0.26039137]
[1732928860916,0.039704,3581.4,3581.1,0.26039137]
[1732928861108,0.039704,3581.4,3581.2,0.26039137]
[1732928861309,3.2516198,3581.3,3580.5,3.0]
[1732928861512,3.2516198,3581.3,3580.4,2.79293]
[1732928861513,0.03936511,3581.2,3580.6,0.26021869]
[1732928861714,0.03936511,3581.2,3580.8,3.0]
[1732928861957,4.13974,3581.5,3580.9,0.26021869]
[1732928862157,0.03935581,3581.1,3581.0,0.26021869]
[1732928862357,2.79221,3581.4,3581.0,0.26021869]
[1732928862516,0.03935581,3581.1,3580.6,3.0]
[1732928862714,4.13977,3581.5,3580.8,3.0]
[1732928863015,4.13977,3581.5,3580.9,0.2601465]
[1732928863016,0.03938007,3581.4,3580.9,0.2601465]
[1732928863215,0.03938007,3581.4,3581.0,0.2601465]
[1732928863450,2.83162007,3581.4,3581.1,0.2601465]
[1732928863611,2.79229,3581.3,3581.1,0.2601465]
[1732928863819,2.79229,3581.3,3580.7,3.0]
[1732928864033,0.03935421,3581.2,3580.7,3.0]
[1732928864228,0.03935421,3581.2,3580.8,0.26006463]
[1732928864611,0.03935421,3581.2,3580.9,0.26006463]
[1732928865319,0.03935421,3581.2,3581.0,0.26006463]
[1732928865320,3.55925722,3581.2,3581.0,0.26006463]
[1732928865543,0.03802794,3581.1,3580.0,1.3685]
[1732928865715,0.03802794,3581.1,3581.0,2.79251]
[1732928865933,1.5324,3581.9,3581.8,2.79189]
[1732928866111,1.5324,3581.9,3581.4,0.55]
[1732928866112,1.57046413,3581.9,3581.4,0.55]
[1732928866446,1.57046413,3581.9,3581.4,2.7922]
[1732928866647,1.57046413,3581.9,3581.6,2.79201]
[1732928867016,0.03806413,3581.9,3581.7,2.7919]
[1732928867327,2.7916,3582.2,3581.5,2.79208]
[1732928867530,0.03841477,3582.1,3581.5,2.79208]
[1732928867772,1.68564,3582.3,3581.5,2.79208]
[1732928867913,0.03840548,3582.0,3581.1,0.55]
[1732928868118,1.5324,3582.3,3581.3,3.0]
[1732928868319,0.03847866,3582.2,3581.8,2.79186]
[1732928868549,1.5324,3582.6,3582.0,2.79172]
[1732928868819,0.03810607,3582.1,3582.0,2.79172]
[1732928869054,1.5324,3582.6,3582.1,3.0]
[1732928869358,0.038231,3582.5,3582.1,2.79159]
[1732928869558,0.038231,3582.5,3581.9,5.79178]
[1732928869766,0.1570631,3582.4,3581.8,5.79188]
[1732928869923,2.9484931,3582.4,3581.9,0.41575819]
[1732928870118,2.9484931,3582.4,3581.5,2.7921]
[1732928870119,2.79158,3582.2,3581.6,3.41575819]
[1732928870451,0.03824061,3582.1,3581.7,0.41575819]
[1732928870820,2.9484931,3582.4,3581.6,5.79198]
[1732928871040,3.51871831,3582.3,3581.7,0.41576974]
[1732928871221,3.55697387,3582.3,3581.7,0.41576974]
[1732928871663,2.79172,3582.1,3581.7,0.41576974]
[1732928871825,1.5324,3582.0,3581.5,0.41576974]
[1732928872019,1.57062405,3582.0,3581.5,0.41576974]
[1732928873545,1.57062405,3582.0,3581.6,3.0]
[1732928873744,1.57062405,3582.0,3581.4,3.0]
[1732928873745,2.79181,3581.9,3581.4,3.0]
[1732928873964,2.79181,3581.9,3581.5,0.41574386]
[1732928874263,0.03811074,3581.8,3581.5,0.41574829]
[1732928875260,4.32413,3582.0,3581.4,0.41574829]
[1732928875572,1.5324,3582.0,3581.5,3.0]
[1732928875772,0.03814329,3581.9,3581.6,0.41574829]
[1732928876438,0.03814329,3581.9,3581.4,0.41574829]
[1732928876981,2.82996329,3581.9,3581.4,0.41574829]
[1732928877179,2.79198,3581.7,3581.4,0.41574829]
[1732928877333,4.32461,3581.4,3581.1,0.41574829]
[1732928877529,4.32461,3581.4,3580.2,4.41502]
[1732928877530,2.79236,3581.2,3580.3,2.79305]
[1732928877731,2.83044124,3581.1,3580.4,3.20875264]
[1732928878061,0.03800124,3581.1,3580.5,3.20866264]
[1732928878272,2.79252,3581.0,3580.6,0.41578264]
[1732928878438,2.79259,3580.9,3580.5,0.41578264]
[1732928878641,2.83053269,3580.9,3580.3,0.41578264]
[1732928878876,0.03794269,3580.9,3580.3,3.20883264]
[1732928879064,0.03794269,3580.9,3580.4,3.41578264]
[1732928879259,1.5324,3580.9,3580.5,0.41578264]
[1732928879458,0.03792249,3580.8,3580.5,0.41578264]
[1732928880355,2.79282,3580.6,3580.5,0.41578264]
[1732928880554,2.79282,3580.6,3579.9,2.79334]
[1732928880757,2.83058646,3580.6,3580.0,0.41578264]
[1732928880971,0.03776646,3580.6,3580.0,3.20907264]
[1732928881142,0.03776646,3580.6,3580.1,0.41578264]
[1732928881664,0.03776646,3580.6,3580.2,3.0]
[1732928881852,0.03776646,3580.6,3580.3,0.41578264]
[1732928882057,2.83059646,3580.6,3580.3,0.41578264]
[1732928882253,0.03776646,3580.6,3580.0,3.20901264]
[1732928882500,0.03776646,3580.6,3580.1,6.20898264]
[1732928882655,2.79277,3580.7,3580.2,0.41578264]
[1732928882843,2.79277,3580.7,3580.0,3.20905264]
[1732928883191,0.03770013,3580.6,3580.1,6.20898264]
[1732928883545,0.03770013,3580.6,3580.2,3.20891264]
[1732928883745,1.5324,3580.9,3580.3,0.41578264]
[1732928884045,2.79274,3580.8,3580.4,0.41578264]
[1732928884380,0.03772113,3580.7,3580.5,0.41578264]
[1732928884691,0.03772113,3580.7,3580.6,0.41578264]
[1732928884889,1.5324,3580.9,3580.3,2.79304]
[1732928885103,0.03771386,3580.7,3580.4,3.20875264]
[1732928885378,0.03770456,3580.6,3580.5,0.41578264]
[1732928885548,0.03770456,3580.6,3580.5,3.20868264]
[1732928885748,1.5324,3580.9,3580.5,0.41578264]
[1732928886081,0.03775829,3580.8,3580.6,0.41578264]
[1732928886282,0.03775829,3580.8,3580.7,0.41578264]
[1732928886657,0.03775829,3580.8,3580.7,0.41732809]
[1732928887246,0.03775829,3580.8,3580.7,3.21007809]
[1732928887483,0.03775829,3580.8,3580.7,0.41732809]
[1732928887682,1.5858,3581.2,3580.7,0.41732809]
[1732928887683,2.79244,3581.1,3580.7,0.41732809]
[1732928887854,4.37821,3581.2,3580.4,2.79297]
[1732928887855,0.03777779,3580.8,3580.4,2.79297]
[1732928888065,2.79254,3581.0,3580.5,0.41726574]
[1732928888268,2.79254,3581.0,3580.4,2.79297]
[1732928888269,2.79254,3581.0,3580.6,0.41726574]
[1732928888493,1.5858,3581.2,3580.7,0.41726574]
[1732928888797,2.79244,3581.1,3580.8,0.41726574]
[1732928889092,2.83001166,3581.1,3580.9,0.41726574]
[1732928889270,2.83001166,3581.1,3581.0,0.41726574]
[1732928890490,0.03757166,3581.1,3581.0,0.41726574]
[1732928891502,0.03757166,3581.1,3581.0,4.83059909]
[1732928891658,1.5858,3581.9,3581.3,2.79227]
[1732928891856,1.5858,3581.9,3581.4,0.41726574]
[1732928892078,1.5858,3581.9,3581.5,0.41726574]
[1732928892289,1.5858,3581.9,3581.4,2.79218]
[1732928892290,1.5858,3581.9,3581.6,0.41726574]
[1732928892506,1.5858,3581.9,3581.0,1.5929]
[1732928892507,2.79129,3582.6,3581.7,0.41726574]
[1732928892655,1.5858,3582.5,3581.8,0.41726574]
[1732928892861,0.437709,3582.4,3581.9,3.20907574]
[1732928893056,1.62250892,3582.5,3582.0,0.41726574]
[1732928893295,1.62250892,3582.5,3582.0,0.44518167]
[1732928893296,0.03673029,3582.3,3582.0,0.44518167]
[1732928893609,1.5858,3582.8,3582.2,2.79153]
[1732928893762,1.5858,3582.8,3582.5,2.79128]
[1732928893970,1.5858,3582.8,3582.6,0.41726574]
[1732928894157,1.5858,3582.8,3582.7,0.41726574]
[1732928895460,4.37668,3583.1,3582.7,0.41726574]
[1732928895674,4.37668,3583.1,3582.8,0.41726574]
[1732928896002,4.37668,3583.1,3582.9,0.41726574]
[1732928896196,4.37668,3583.1,3582.6,0.41726574]
[1732928896397,1.5858,3583.1,3582.7,0.41726574]
[1732928896608,1.5858,3583.1,3582.8,0.41652132]
[1732928896810,1.5858,3583.1,3582.4,0.43387637]
[1732928896811,1.5858,3583.1,3582.9,0.41651591]
[1732928897007,1.5858,3583.1,3583.0,0.41651591]
[1732928897304,1.5858,3583.1,3582.6,0.41651591]
[1732928897500,1.5858,3583.1,3582.7,0.41651591]
[1732928897810,4.37638,3583.5,3582.8,3.20755591]
[1732928897974,4.37638,3583.5,3582.9,0.41651591]
[1732928898175,4.37638,3583.5,3583.0,0.41651591]
[1732928898392,1.5858,3583.5,3583.1,0.41651591]
[1732928898619,1.5858,3583.5,3583.2,0.41651591]
[1732928898815,1.5858,3583.5,3583.0,3.23537367]
[1732928899120,2.79036,3583.8,3583.1,0.41651591]
[1732928899121,1.5858,3583.8,3583.1,0.41651591]
[1732928899279,1.5858,3583.8,3583.2,3.20731591]
[1732928899479,1.5858,3583.8,3583.3,0.41651591]
[1732928899734,1.5858,3583.8,3583.0,2.79095]
[1732928900017,1.5858,3583.8,3582.6,1.5929]
[1732928900018,1.5858,3583.8,3583.3,0.41596196]
[1732928900217,1.5858,3583.8,3583.3,3.20661196]
[1732928900398,0.55,3583.7,3583.4,0.41596196]
[1732928900981,0.55,3584.0,3583.4,3.20659196]
[1732928901314,3.34018,3584.0,3583.5,0.41596196]
[1732928901524,0.55,3583.8,3583.3,0.41596196]
[1732928902277,8.96e-06,3584.9,3583.9,2.79025]
[1732928902477,1.116746,3586.0,3585.3,2.78912]
[1732928902478,0.1569901,3585.5,3585.3,2.78912]
[1732928902787,0.1569901,3585.5,3585.3,2.78909]
[1732928903091,0.1569901,3585.5,3585.4,0.4151146]
[1732928903680,0.1569901,3585.5,3585.2,2.78922]
[1732928903681,0.1569901,3585.5,3585.3,0.4151146]
[1732928904216,0.1569901,3585.5,3584.9,4.5929]
[1732928904217,0.1569901,3585.5,3585.1,3.0]
[1732928904517,0.1569901,3585.5,3585.2,0.4151146]
[1732928905702,0.1569901,3585.5,3585.2,2.78923]
[1732928906318,0.1569901,3585.5,3585.0,2.78937]
[1732928906515,0.1569901,3585.5,3585.1,3.20199465]
[1732928906679,0.1569901,3585.5,3585.2,3.0]
[1732928906884,0.1569901,3585.5,3585.0,3.0]
[1732928907209,0.1569901,3585.5,3585.4,2.78908]
[1732928910213,0.1569901,3585.5,3585.4,3.20089841]
[1732928910605,0.1569901,3585.5,3585.4,0.41181841]
[1732928910798,1.6664901,3585.5,3585.0,0.41181841]
[1732928911044,4.4555001,3585.5,3585.0,0.41181841]
[1732928911399,2.78932,3585.1,3584.4,2.78981]
[1732928911700,2.78971,3584.6,3584.5,0.41164863]
[1732928911901,0.55,3584.9,3584.0,0.41164863]
[1732928912212,1.5095,3585.0,3584.8,2.78948]
[1732928912524,1.5095,3585.0,3583.7,0.84062614]
[1732928912525,1.5095,3585.4,3584.4,1.6217]
[1732928912698,1.5095,3585.4,3585.2,2.78923]
[1732928912898,1.5095,3585.4,3584.9,2.7894]
[1732928913162,1.5095,3585.4,3585.1,2.78928]
[1732928913354,1.5095,3585.4,3584.9,2.78947]
[1732928913525,0.1569901,3585.5,3585.4,2.78908]
[1732928913926,0.1569901,3585.5,3585.2,2.78919]
[1732928914142,0.1569901,3585.5,3585.1,2.78932]
[1732928914143,0.1569901,3585.5,3585.3,2.78915]
[1732928914402,0.1569901,3585.5,3585.1,2.78932]
[1732928914671,2.9460001,3585.5,3584.5,3.0]
[1732928914815,2.78917,3585.3,3584.7,2.78962]
[1732928915158,2.78917,3585.3,3584.8,0.41185108]
[1732928915656,2.9460001,3585.5,3584.8,0.41185108]
[1732928915820,2.78909,3585.4,3584.8,0.41185108]
[1732928916034,2.78909,3585.4,3584.8,3.20138108]
[1732928916243,2.78909,3585.4,3584.9,0.41185108]
[1732928916459,2.7894,3585.0,3584.9,0.41185108]
[1732928916632,4.8486,3585.4,3584.7,2.78962]
[1732928916959,4.8486,3585.4,3584.4,0.41185108]
[1732928916960,4.2986,3585.4,3584.8,3.20137108]
[1732928917129,2.78927,3585.2,3584.9,0.41185108]
[1732928917332,2.78932,3585.1,3584.7,0.41185108]
[1732928917562,2.78918,3585.3,3584.6,2.78963]
[1732928917731,2.78918,3585.3,3584.7,0.41185108]
[1732928917926,2.78939,3585.1,3584.7,0.41185108]
[1732928918128,2.78939,3585.1,3584.5,0.41185108]
[1732928918450,2.78939,3585.1,3584.6,0.41185108]
[1732928918769,2.78939,3585.1,3584.4,0.41185108]
[1732928918950,2.78941,3585.0,3584.5,0.41185108]
[1732928919282,2.78924,3585.2,3584.6,0.41185108]
[1732928919445,4.2986,3585.4,3584.7,0.41185108]
[1732928919446,2.78947,3585.0,3584.7,0.41185108]
[1732928919643,2.78947,3585.0,3584.5,0.41185108]
[1732928919849,2.78949,3584.9,3584.6,0.41185108]
[1732928920139,2.78974,3584.6,3584.2,0.4289054]
[1732928920347,2.78974,3584.6,3584.3,0.41362217]
[1732928920554,2.78974,3584.6,3584.4,0.41362217]
[1732928920869,3.33974,3584.6,3584.5,0.41362217]
[1732928921106,3.33974,3584.6,3583.2,2.58903106]
[1732928921107,2.78994,3584.3,3584.2,0.41362217]
[1732928921373,0.55,3584.6,3583.8,0.4289054]
[1732928921374,2.79021,3584.0,3583.8,0.43141247]
[1732928921539,2.79021,3584.0,3583.9,0.41416763]
[1732928922169,2.79021,3584.0,3583.9,0.8455801]
[1732928922481,4.29971,3584.0,3583.9,0.41416763]
[1732928922809,4.29971,3584.0,3583.9,0.4145448]
[1732928923304,2.78995,3584.3,3583.9,0.4145448]
[1732928923463,2.7901,3584.1,3584.0,0.84663304]
[1732928923862,2.78995,3584.3,3584.0,0.4145448]
[1732928924159,2.78995,3584.3,3584.1,0.84663304]
[1732928924462,4.29931,3584.5,3584.2,0.4145448]
[1732928924683,4.29931,3584.5,3584.3,0.4145448]
[1732928925010,4.29931,3584.5,3583.7,2.79039]
[1732928925011,2.7899,3584.4,3583.7,2.79039]
[1732928925159,2.78999,3584.3,3583.7,2.79039]
[1732928925360,2.78989,3584.4,3583.7,2.79039]
[1732928925561,1.5095,3584.5,3584.2,0.43230776]
[1732928925767,2.78994,3584.4,3584.2,0.43230776]
[1732928925965,2.78994,3584.4,3584.3,0.67477862]
[1732928926502,4.29934,3584.5,3584.3,0.67477862]
[1732928926701,4.29934,3584.5,3584.4,0.67477862]
[1732928927066,1.5095,3584.5,3584.4,1.10708638]
[1732928927271,4.29928,3584.5,3584.4,1.10708638]
[1732928928608,4.29928,3584.5,3584.4,0.67477862]
[1732928929532,2.78968,3584.7,3584.4,0.67477862]
[1732928929744,4.37487,3584.8,3584.0,2.79011]
[1732928930031,2.78986,3584.4,3584.1,0.67601511]
[1732928930249,2.79002,3584.2,3584.1,0.26000581]
[1732928930527,2.79002,3584.2,3584.1,0.67629679]
[1732928930931,4.92532,3584.2,3584.1,0.67629679]
[1732928931091,2.79069,3583.4,3582.8,1.6477]
[1732928931288,2.79073,3583.3,3582.9,0.67650456]
[1732928931485,2.79073,3583.3,3583.0,0.67650456]
[1732928931726,2.79073,3583.3,3583.1,0.67650456]
[1732928932044,1.5853,3583.5,3583.2,0.67650456]
[1732928932248,4.37565,3583.8,3583.3,0.67650456]
[1732928932449,1.5853,3583.8,3583.4,0.26019406]
[1732928932654,2.7905,3583.6,3583.5,0.26019406]
[1732928932949,2.7905,3583.6,3582.7,3.0]
[1732928933157,2.7905,3583.6,3583.5,0.26021694]
[1732928933158,3.3405,3583.6,3583.5,0.26021694]
[1732928933306,2.79062,3583.5,3582.7,3.0]
[1732928933651,2.79062,3583.5,3582.9,2.79103]
[1732928933857,2.79041,3583.7,3583.1,2.79087]
[1732928934250,2.79041,3583.7,3583.6,0.43352205]
[1732928934545,1.5853,3583.8,3583.1,2.79087]
[1732928934752,2.79034,3583.8,3583.2,4.4663745]
[1732928934921,2.79034,3583.8,3583.3,2.7907]
[1732928935335,2.79034,3583.8,3583.2,1.6756045]
[1732928935553,2.79033,3583.8,3583.7,0.43347923]
[1732928935717,2.79048,3583.7,3583.2,1.6477]
[1732928936651,1.9751008,3584.1,3583.0,3.0]
[1732928936876,2.7907,3583.4,3582.8,1.6477]
[1732928937069,2.79072,3583.3,3582.9,3.0]